fUST/lending_fUST_20250601
["ID","MTS","AMOUNT","RATE_DAILY","PERIOD"]
[363575898,1748773846517,-523.4,0.00021095,2]
[363575899,1748773846526,-628.21,0.00021095,2]
[363575900,1748773846536,-710.44,0.00021095,2]
[363575901,1748773846546,-478.46,0.00021095,2]
[363575902,1748773846556,-442.82,0.00021095,2]
[363575903,1748773846566,-875.79,0.00021095,2]
[363575904,1748773846576,-430.0,0.00021095,2]
[363575905,1748773846585,-2043.12,0.00021166,2]
[363575906,1748773846595,-601.00497466,0.00021245,4]
[363575907,1748773846605,-156.24936685,0.00021298,2]
[363575908,1748773846615,-19103.10174,0.00021368,2]
[363575909,1748773846625,-693.33,0.00021369,2]
[363575910,1748773846635,-531.75,0.00021369,2]
[363575911,1748773846645,-440.27,0.00021369,2]
[363575912,1748773846656,-595.14,0.00021369,2]
[363575913,1748773846666,-1033.78,0.00021369,2]
[363575914,1748773846676,-628.21,0.00021369,2]
[363575915,1748773846686,-710.44,0.00021369,2]
[363575916,1748773846696,-478.46,0.00021369,2]
[363575917,1748773846705,-442.82,0.00021369,2]
[363575918,1748773846715,-875.79,0.00021369,2]
[363575919,1748773846724,-430.0,0.00021369,2]
[363575920,1748773846734,-601.00497466,0.00021486,5]
[363575921,1748773846744,-693.33,0.00021643,2]
[363575922,1748773846756,-531.75,0.00021643,2]
[363575923,1748773846767,-440.27,0.00021643,2]
[363575924,1748773846777,-595.14,0.00021643,2]
[363575925,1748773846788,-1033.78,0.00021643,2]
[363575926,1748773846798,-628.21,0.00021643,2]
[363575927,1748773846808,-710.44,0.00021643,2]
[363575928,1748773846818,-478.46,0.00021643,2]
[363575929,1748773846827,-442.82,0.00021643,2]
[363575930,1748773846838,-875.79,0.00021643,2]
[363575931,1748773846847,-430.0,0.00021643,2]
[363575932,1748773846858,-601.00497466,0.00021728,5]
[363575933,1748773846868,-693.33,0.00021917,2]
[363575934,1748773846878,-531.75,0.00021917,2]
[363575935,1748773846888,-440.27,0.00021917,2]
[363575936,1748773846897,-595.14,0.00021917,2]
[363575937,1748773846907,-1033.78,0.00021917,2]
[363575938,1748773846916,-628.21,0.00021917,2]
[363575939,1748773846925,-710.44,0.00021917,2]
[363575940,1748773846935,-478.46,0.00021917,2]
[363575941,1748773846945,-442.82,0.00021917,2]
[363575942,1748773846955,-875.79,0.00021917,2]
[363575943,1748773846965,-430.0,0.00021917,2]
[363575944,1748773846975,-601.00497466,0.00021969,6]
[363575945,1748773846985,-166.0,0.00022,2]
[363575946,1748773846994,-173.0,0.00022,2]
[363575947,1748773847005,-2553.9,0.00022048,2]
[363575948,1748773847014,-3683.53,0.000221,2]
[363575949,1748773847025,-617.13,0.000221,7]
[363575950,1748773847035,-500.0,0.00022146,2]
[363575951,1748773847045,-693.33,0.00022191,2]
[363575952,1748773847055,-531.75,0.00022191,2]
[363575953,1748773847066,-440.27,0.00022191,2]
[363575954,1748773847076,-595.14,0.00022191,2]
[363575955,1748773847086,-1033.78,0.00022191,2]
[363575956,1748773847096,-628.21,0.00022191,2]
[363575957,1748773847105,-710.44,0.00022191,2]
[363575958,1748773847114,-478.46,0.00022191,2]
[363575959,1748773847123,-442.82,0.00022191,2]
[363575960,1748773847133,-875.79,0.00022191,2]
[363575961,1748773847143,-158.8,0.00022191,2]
[363575962,1748773847152,-166.0,0.00022192,7]
[363575963,1748773847162,-601.00497466,0.0002221,6]
[363575964,1748773847171,-983.74,0.000223,7]
[363575965,1748773847181,-223.0315306,0.00022376,2]
[363575966,1748773847191,-601.00497466,0.00022452,7]
[363575967,1748773847201,-693.33,0.00022465,2]
[363575968,1748773847210,-531.75,0.00022465,2]
[363575969,1748773847383,-440.27,0.00022465,2]
[363575970,1748773847394,-595.14,0.00022465,2]
[363575971,1748773847405,-1033.78,0.00022465,2]
[363575972,1748773847414,-628.21,0.00022465,2]
[363575973,1748773847424,-710.44,0.00022465,2]
[363575974,1748773847434,-478.46,0.00022465,2]
[363575975,1748773847444,-442.82,0.00022465,2]
[363575976,1748773847454,-875.79,0.00022465,2]
[363575977,1748773847464,-408.15,0.000225,7]
[363575978,1748773847473,-156.24936685,0.00022538,2]
[363575979,1748773847483,-601.00497466,0.00022693,7]
[363575980,1748773847492,-693.37040271,0.00022739,2]
[363575981,1748773847503,-531.76,0.00022739,2]
[363575982,1748773847512,-440.34,0.00022739,2]
[363575983,1748773847522,-595.1975438,0.00022739,2]
[363575984,1748773847531,-1033.78553676,0.00022739,2]
[363575985,1748773847541,-628.33359613,0.00022739,2]
[363575986,1748773847550,-710.45,0.00022739,2]
[363575987,1748773847559,-478.69,0.00022739,2]
[363575988,1748773847569,-442.9,0.00022739,2]
[363575989,1748773847578,-876.0,0.00022739,2]
[363575990,1748773847587,-155.6687316,0.00022795,2]
[363575991,1748773847597,-153.0,0.00022795,2]
[363575992,1748773847606,-153.0,0.00022795,2]
[363575993,1748773847616,-8000.0,0.000228,4]
[363575994,1748773847626,-405.0,0.00022804,2]
[363575995,1748773847635,-3064.69,0.0002293,2]
[363575996,1748773847644,-601.00497466,0.00022934,8]
[363575997,1748773847653,-2000.0,0.00023,2]
[363575998,1748773847663,-26799.00263699,0.00023,2]
[363575999,1748773847672,-188005.57299744,0.00023,3]
[363576000,1748773847682,-423.51412927,0.00023,3]
[363576001,1748773847691,-166.0,0.00023014,7]
[363576002,1748773847701,-601.00497466,0.00023176,8]
[363576003,1748773847710,-3683.53,0.000232,2]
[363576004,1748773847720,-617.13,0.000232,7]
[363576005,1748773847731,-2001.99115694,0.000233,2]
[363576006,1748773847740,-30391.77,0.000233,6]
[363576007,1748773847752,-122938.48,0.000233,6]
[363576008,1748773847762,-1253.662958,0.00023303,3]
[363576009,1748773847772,-9859.40490574,0.00023328,2]
[363576010,1748773847782,-5000.0,0.00023328,2]
[363576011,1748773847792,-5000.0,0.00023328,2]
[363576012,1748773847801,-5000.0,0.00023328,2]
[363576013,1748773847810,-5000.0,0.00023328,2]
[363576014,1748773847820,-140873.59,0.000234,7]
[363576015,1748773847830,-601.00497466,0.00023417,9]
[363576016,1748773847839,-500.0,0.00023469,2]
[363576017,1748773847849,-501.28489776,0.000235,9]
[363576018,1748773847858,-500.85666673,0.000235,9]
[363576019,1748773847868,-8000.0,0.000236,4]
[363576020,1748773847877,-12666.87825251,0.000236,30]
[363576021,1748773847886,-5000.0,0.000236,7]
[363576022,1748773847896,-601.00497466,0.00023659,9]
[363576023,1748773847905,-482.11,0.0002368,10]
[363576024,1748773847915,-401.76,0.0002368,10]
[363576025,1748773847924,-334.8,0.0002368,10]
[363576026,1748773847933,-203.339618,0.00023681,7]
[363576027,1748773847944,-151.0,0.00023681,7]
[363576028,1748773847962,-388.997857,0.00023681,7]
[363576029,1748773847981,-388.997857,0.00023681,7]
[363576030,1748773848000,-151.0,0.00023681,2]
[363576031,1748773848018,-151.0,0.00023681,2]
[363576032,1748773848036,-159.53536824,0.0002369,2]
[363576033,1748773848054,-2000.0,0.000237,2]
[363576034,1748773848072,-152.99,0.000237,31]
[363576035,1748773848092,-152.99,0.000237,31]
[363576036,1748773848111,-152.99,0.000237,31]
[363576037,1748773848130,-152.99,0.000237,31]
[363576038,1748773848146,-152.99,0.000237,31]
[363576039,1748773848156,-152.99,0.000237,31]
[363576040,1748773848166,-152.99,0.000237,31]
[363576041,1748773848176,-152.99,0.000237,31]
[363576042,1748773848186,-152.99,0.000237,31]
[363576043,1748773848196,-152.99,0.000237,31]
[363576044,1748773848206,-152.99,0.000237,31]
[363576045,1748773848215,-152.99,0.000237,31]
[363576046,1748773848224,-152.99,0.000237,31]
[363576047,1748773848234,-152.99,0.000237,31]
[363576048,1748773848244,-152.99,0.000237,31]
[363576049,1748773848253,-150.0,0.000237,5]
[363576050,1748773848263,-229.3709046,0.000237,3]
[363576051,1748773848272,-160.0,0.000237,3]
[363576052,1748773848282,-160.0,0.000237,3]
[363576053,1748773848290,-160.0,0.000237,3]
[363576054,1748773848300,-231.28369723,0.00023745,2]
[363576055,1748773848309,-156.24936685,0.00023778,2]
[363576056,1748773848319,-321286.73003429,0.0002379,7]
[363576057,1748773848519,-6586.68031789,0.0002379,7]
[363576058,1748773848669,-300.0,0.00016437,2]
[363576059,1748773848679,-430.0,0.00016438,2]
[363576060,1748773848689,-430.0,0.00016438,2]
[363576061,1748773848699,-430.0,0.00016438,2]
[363576062,1748773848708,-430.0,0.00016438,2]
[363576063,1748773848717,-430.0,0.00016712,2]
[363576064,1748773848727,-430.0,0.00016712,2]
[363576065,1748773848736,-49099.99999995,0.0002379,7]
[363576066,1748773848748,-265.35380314,0.0002379,7]
[363576067,1748773848939,-224.86938334,0.00016438,2]
[363576068,1748773910459,2038.0,0.00024658,120]
[363576100,1748774311589,-380.0,0.00016,2]
[363576104,1748774402391,551.247898,0.00013699,2]
[363576119,1748774759133,-380.0,0.0001584,2]
[363576120,1748774759154,-620.000001,0.00016,2]
[363576121,1748774759175,-300.0,0.00016436,2]
[363576122,1748774759195,-300.0,0.00016436,2]
[363576123,1748774759216,-381.44605651,0.00016437,2]
[363576124,1748774759239,-500.0,0.00016437,2]
[363576125,1748774759261,-500.0,0.00016437,2]
[363576126,1748774759283,-500.0,0.00016437,2]
[363576127,1748774759305,-500.0,0.00016437,2]
[363576128,1748774759328,-500.0,0.00016437,2]
[363576129,1748774759351,-500.0,0.00016437,2]
[363576130,1748774759377,-500.0,0.00016437,2]
[363576131,1748774759400,-500.0,0.00016437,2]
[363576132,1748774759424,-500.0,0.00016437,2]
[363576133,1748774759447,-500.0,0.00016437,2]
[363576134,1748774759470,-500.0,0.00016437,2]
[363576135,1748774759493,-500.0,0.00016437,2]
[363576136,1748774759689,-500.0,0.00016437,2]
[363576137,1748774759715,-500.0,0.00016437,2]
[363576138,1748774759738,-550.25417313,0.00016437,2]
[363576139,1748774759760,-500.0,0.00016437,2]
[363576140,1748774759780,-430.0,0.00016438,2]
[363576141,1748774759800,-511.0270788,0.00016438,2]
[363576142,1748774759820,-430.0,0.00016438,2]
[363576143,1748774759841,-430.0,0.00016438,2]
[363576144,1748774759860,-430.0,0.00016438,2]
[363576145,1748774759880,-432.53819276,0.00016438,2]
[363576146,1748774759901,-430.0,0.00016438,2]
[363576147,1748774759923,-430.0,0.00016438,2]
[363576148,1748774759944,-430.0,0.00016438,2]
[363576149,1748774759964,-332.44511363,0.00016438,2]
[363576150,1748774759985,-402.10128529,0.00016438,2]
[363576151,1748774760005,-430.0,0.00016438,2]
[363576152,1748774760026,-430.0,0.00016438,2]
[363576153,1748774760046,-430.0,0.00016438,2]
[363576154,1748774760066,-430.0,0.00016438,2]
[363576155,1748774760087,-321.43276501,0.00016438,2]
[363576226,1748774833097,-300.0,0.00016437,2]
[363576227,1748774833120,-108.56723499,0.00016438,2]
[363576228,1748774833142,-430.0,0.00016438,2]
[363576229,1748774833167,-430.0,0.00016438,2]
[363576230,1748774833190,-430.0,0.00016438,2]
[363576231,1748774833212,-430.0,0.00016438,2]
[363576232,1748774833234,-430.0,0.00016438,2]
[363576233,1748774833255,-430.0,0.00016438,2]
[363576234,1748774833278,-430.0,0.00016438,2]
[363576235,1748774833300,-430.0,0.00016438,2]
[363576236,1748774833321,-364.79486407,0.00016438,2]
[363576237,1748774833342,-430.0,0.00016438,2]
[363576238,1748774833362,-370.0,0.00016438,2]
[363576239,1748774833384,-430.0,0.00016438,2]
[363576240,1748774833406,-430.0,0.00016438,2]
[363576241,1748774833428,-430.0,0.00016438,2]
[363576242,1748774833449,-501.28122029,0.00016438,2]
[363576243,1748774833471,-382.14472185,0.00016438,2]
[363576244,1748774833492,-430.0,0.00016438,2]
[363576245,1748774833514,-400.0,0.00016438,2]
[363576246,1748774833536,-430.0,0.00016438,2]
[363576247,1748774833558,-430.0,0.00016438,2]
[363576248,1748774833579,-430.0,0.00016438,2]
[363576249,1748774833600,-430.0,0.00016438,2]
[363576250,1748774833621,-430.0,0.00016438,2]
[363576251,1748774833643,-430.0,0.00016438,2]
[363576252,1748774833668,-400.53549906,0.00016438,2]
[363576253,1748774833695,-430.0,0.00016438,2]
[363576254,1748774833718,-430.0,0.00016438,2]
[363576255,1748774833740,-430.0,0.00016438,2]
[363576256,1748774833763,-430.0,0.00016438,2]
[363576257,1748774833784,-430.0,0.00016438,2]
[363576258,1748774833806,-430.0,0.00016438,2]
[363576259,1748774833828,-430.0,0.00016438,2]
[363576260,1748774833849,-430.0,0.00016438,2]
[363576261,1748774833870,-430.0,0.00016438,2]
[363576262,1748774833892,-430.0,0.00016438,2]
[363576263,1748774833915,-177.46204362,0.00016438,2]
[363576264,1748774841079,-252.53795638,0.00016438,2]
[363576265,1748774841101,-434.61018233,0.00016438,2]
[363576266,1748774841124,-430.0,0.00016438,2]
[363576267,1748774841145,-225.28067533,0.00016438,2]
[363576270,1748774945080,-156.24936685,0.00016338,2]
[363576271,1748774945104,-240.0,0.00016437,2]
[363576272,1748774945124,-204.71932467,0.00016438,2]
[363576273,1748774945144,-276.23505333,0.00016438,2]
[363576274,1748774945164,-430.0,0.00016438,2]
[363576275,1748774945185,-430.0,0.00016438,2]
[363576276,1748774945206,-430.0,0.00016438,2]
[363576277,1748774945227,-430.0,0.00016438,2]
[363576278,1748774945250,-430.0,0.00016438,2]
[363576279,1748774945270,-430.0,0.00016438,2]
[363576280,1748774945291,-430.0,0.00016438,2]
[363576281,1748774945462,-430.0,0.00016438,2]
[363576282,1748774945484,-430.0,0.00016438,2]
[363576283,1748774945508,-430.0,0.00016438,2]
[363576284,1748774945529,-430.77599743,0.00016438,2]
[363576285,1748774945553,-430.0,0.00016438,2]
[363576286,1748774945577,-379.34380994,0.00016438,2]
[363576287,1748774945597,-430.0,0.00016438,2]
[363576288,1748774945622,-430.0,0.00016438,2]
[363576289,1748774945642,-430.0,0.00016438,2]
[363576290,1748774945662,-430.0,0.00016438,2]
[363576291,1748774945681,-430.0,0.00016438,2]
[363576292,1748774945701,-358.907453,0.00016438,2]
[363576293,1748774945724,-430.0,0.00016438,2]
[363576294,1748774945744,-430.0,0.00016438,2]
[363576295,1748774945767,-430.0,0.00016438,2]
[363576296,1748774945789,-430.0,0.00016438,2]
[363576297,1748774945809,-430.0,0.00016438,2]
[363576298,1748774945829,-430.0,0.00016438,2]
[363576299,1748774945853,-430.0,0.00016438,2]
[363576300,1748774945873,-430.0,0.00016438,2]
[363576301,1748774945895,-376.32795674,0.00016438,2]
[363576302,1748774945915,-430.0,0.00016438,2]
[363576303,1748774945935,-430.0,0.00016438,2]
[363576304,1748774945956,-430.0,0.00016438,2]
[363576305,1748774945977,-430.0,0.00016438,2]
[363576306,1748774945999,-370.0,0.00016438,2]
[363576307,1748774946020,-430.0,0.00016438,2]
[363576308,1748774946042,-430.0,0.00016438,2]
[363576309,1748774946063,-430.0,0.00016438,2]
[363576310,1748774946084,-430.0,0.00016438,2]
[363576311,1748774946105,-430.0,0.00016438,2]
[363576312,1748774946127,-430.0,0.00016438,2]
[363576313,1748774946148,-462.79443638,0.00016438,2]
[363576314,1748774946169,-445.69020134,0.00016438,2]
[363576315,1748774946191,-430.0,0.00016438,2]
[363576316,1748774946211,-430.0,0.00016438,2]
[363576317,1748774946232,-430.0,0.00016438,2]
[363576318,1748774946254,-430.0,0.00016438,2]
[363576319,1748774946274,-429.98812886,0.00016438,2]
[363576320,1748774946295,-430.0,0.00016438,2]
[363576321,1748774946316,-430.0,0.00016438,2]
[363576322,1748774946336,-430.0,0.00016438,2]
[363576323,1748774946358,-430.0,0.00016438,2]
[363576324,1748774946378,-430.0,0.00016438,2]
[363576325,1748774946397,-430.0,0.00016438,2]
[363576326,1748774946418,-430.0,0.00016438,2]
[363576327,1748774946439,-430.0,0.00016438,2]
[363576328,1748774946459,-430.0,0.00016438,2]
[363576329,1748774946480,-430.0,0.00016438,2]
[363576330,1748774946504,-430.0,0.00016438,2]
[363576331,1748774946526,-500.0,0.00016438,2]
[363576332,1748774946549,-430.0,0.00016438,2]
[363576333,1748774946571,-430.0,0.00016438,2]
[363576334,1748774946593,-430.0,0.00016438,2]
[363576335,1748774946615,-430.0,0.00016438,2]
[363576336,1748774946636,-430.0,0.00016438,2]
[363576337,1748774946656,-430.0,0.00016438,2]
[363576338,1748774946676,-400.0,0.00016438,2]
[363576339,1748774946699,-430.0,0.00016438,2]
[363576340,1748774946723,-430.0,0.00016438,2]
[363576341,1748774946743,-409.97830081,0.00016438,2]
[363576342,1748774946766,-430.0,0.00016438,2]
[363576343,1748774946787,-196.73012193,0.00016438,2]
[363576344,1748774946808,-430.0,0.00016438,2]
[363576345,1748774946829,-430.0,0.00016438,2]
[363576346,1748774946850,-430.0,0.00016438,2]
[363576347,1748774946871,-430.0,0.00016438,2]
[363576348,1748774946892,-430.0,0.00016438,2]
[363576349,1748774946914,-430.0,0.00016438,2]
[363576350,1748774946936,-430.0,0.00016438,2]
[363576351,1748774946958,-430.0,0.00016438,2]
[363576352,1748774946979,-430.0,0.00016438,2]
[363576353,1748774947000,-430.0,0.00016438,2]
[363576354,1748774947021,-430.0,0.00016438,2]
[363576355,1748774947042,-430.0,0.00016438,2]
[363576356,1748774947063,-396.23295769,0.00016438,2]
[363576357,1748774947084,-430.0,0.00016438,2]
[363576358,1748774947104,-430.0,0.00016438,2]
[363576359,1748774947126,-430.0,0.00016438,2]
[363576360,1748774947146,-451.77726781,0.00016438,2]
[363576361,1748774947167,-430.0,0.00016438,2]
[363576362,1748774947188,-430.0,0.00016438,2]
[363576363,1748774947209,-430.0,0.00016438,2]
[363576364,1748774947231,-430.0,0.00016438,2]
[363576365,1748774947254,-319.04150137,0.00016438,2]
[363576379,1748775032223,-110.95849863,0.00016438,2]
[363576380,1748775032233,-430.0,0.00016438,2]
[363576381,1748775032242,-430.0,0.00016438,2]
[363576382,1748775032251,-430.0,0.00016438,2]
[363576383,1748775032261,-430.0,0.00016438,2]
[363576384,1748775032270,-430.58076173,0.00016438,2]
[363576385,1748775032280,-430.0,0.00016438,2]
[363576386,1748775032289,-430.0,0.00016438,2]
[363576387,1748775032298,-440.08219242,0.00016438,2]
[363576388,1748775032308,-430.0,0.00016438,2]
[363576389,1748775032317,-430.0,0.00016438,2]
[363576390,1748775032326,-430.0,0.00016438,2]
[363576391,1748775032336,-430.0,0.00016438,2]
[363576393,1748775032345,-430.0,0.00016438,2]
[363576394,1748775032355,-430.0,0.00016438,2]
[363576396,1748775032365,-430.0,0.00016438,2]
[363576397,1748775032375,-430.0,0.00016438,2]
[363576399,1748775032384,-430.0,0.00016438,2]
[363576401,1748775032395,-500.0,0.00016438,2]
[363576403,1748775032408,-430.0,0.00016438,2]
[363576405,1748775032417,-430.0,0.00016438,2]
[363576407,1748775032426,-430.0,0.00016438,2]
[363576409,1748775032436,-430.0,0.00016438,2]
[363576411,1748775032446,-430.0,0.00016438,2]
[363576413,1748775032455,-430.0,0.00016438,2]
[363576415,1748775032464,-205.13061666,0.00016438,2]
[363576416,1748775032474,-430.0,0.00016438,2]
[363576418,1748775032483,-997.29,0.00016438,2]
[363576419,1748775032493,-430.0,0.00016438,2]
[363576420,1748775032503,-430.0,0.00016438,2]
[363576421,1748775032513,-238.68847017,0.00016438,2]
[363576422,1748775032524,-430.0,0.00016438,2]
[363576423,1748775032534,-430.0,0.00016438,2]
[363576424,1748775032543,-430.0,0.00016438,2]
[363576426,1748775032554,-430.0,0.00016438,2]
[363576427,1748775032567,-637.77,0.00016438,2]
[363576428,1748775032576,-380.01990623,0.00016438,2]
[363576430,1748775032796,-430.0,0.00016438,2]
[363576431,1748775032810,-430.0,0.00016438,2]
[363576432,1748775032820,-430.0,0.00016438,2]
[363576433,1748775032829,-430.0,0.00016438,2]
[363576434,1748775032839,-430.0,0.00016438,2]
[363576435,1748775032849,-430.0,0.00016438,2]
[363576436,1748775032859,-430.0,0.00016438,2]
[363576437,1748775032869,-430.0,0.00016438,2]
[363576438,1748775032879,-430.0,0.00016438,2]
[363576439,1748775032889,-430.0,0.00016438,2]
[363576440,1748775032899,-430.0,0.00016438,2]
[363576441,1748775032910,-430.0,0.00016438,2]
[363576442,1748775032920,-430.0,0.00016438,2]
[363576443,1748775032929,-849.94,0.00016438,2]
[363576444,1748775032938,-430.0,0.00016438,2]
[363576445,1748775032948,-430.0,0.00016438,2]
[363576446,1748775032958,-430.0,0.00016438,2]
[363576447,1748775032968,-430.0,0.00016438,2]
[363576448,1748775032978,-430.0,0.00016438,2]
[363576449,1748775032988,-430.0,0.00016438,2]
[363576450,1748775032998,-430.0,0.00016438,2]
[363576451,1748775033008,-401.19127674,0.00016438,2]
[363576452,1748775033017,-1116.43,0.00016438,2]
[363576453,1748775033027,-430.0,0.00016438,2]
[363576454,1748775033038,-430.0,0.00016438,2]
[363576455,1748775033048,-430.0,0.00016438,2]
[363576456,1748775033059,-872.94,0.00016438,2]
[363576457,1748775033069,-430.0,0.00016438,2]
[363576458,1748775033079,-430.0,0.00016438,2]
[363576459,1748775033091,-430.0,0.00016438,2]
[363576460,1748775033102,-430.0,0.00016438,2]
[363576461,1748775033112,-430.0,0.00016438,2]
[363576462,1748775033122,-430.0,0.00016438,2]
[363576463,1748775033132,-428.53746395,0.00016438,2]
[363576464,1748775033142,-430.0,0.00016438,2]
[363576465,1748775033152,-430.0,0.00016438,2]
[363576466,1748775033163,-430.0,0.00016438,2]
[363576467,1748775033174,-430.0,0.00016438,2]
[363576468,1748775033185,-430.0,0.00016438,2]
[363576469,1748775033196,-430.0,0.00016438,2]
[363576470,1748775033206,-430.0,0.00016438,2]
[363576471,1748775033217,-430.0,0.00016438,2]
[363576472,1748775033227,-430.0,0.00016438,2]
[363576473,1748775033237,-235.78757373,0.00016438,2]
[363576474,1748775033247,-430.0,0.00016438,2]
[363576475,1748775033258,-430.0,0.00016438,2]
[363576476,1748775033268,-430.0,0.00016438,2]
[363576477,1748775033278,-430.0,0.00016438,2]
[363576478,1748775033289,-430.0,0.00016438,2]
[363576479,1748775033299,-754.76,0.00016438,2]
[363576480,1748775033310,-430.0,0.00016438,2]
[363576481,1748775033319,-430.0,0.00016438,2]
[363576482,1748775033330,-430.0,0.00016438,2]
[363576483,1748775033340,-430.0,0.00016438,2]
[363576484,1748775033350,-430.0,0.00016438,2]
[363576485,1748775033361,-432.85543046,0.00016438,2]
[363576486,1748775033370,-430.0,0.00016438,2]
[363576487,1748775033382,-430.0,0.00016438,2]
[363576488,1748775033391,-430.0,0.00016438,2]
[363576489,1748775033401,-430.0,0.00016438,2]
[363576490,1748775033411,-576.35621463,0.00016438,2]
[363576491,1748775033422,-1277.6,0.00016438,2]
[363576492,1748775033431,-430.0,0.00016438,2]
[363576493,1748775033442,-524.14,0.00016438,2]
[363576494,1748775033452,-430.0,0.00016438,2]
[363576495,1748775033462,-430.0,0.00016438,2]
[363576496,1748775033472,-430.0,0.00016438,2]
[363576497,1748775033481,-430.0,0.00016438,2]
[363576498,1748775033491,-430.0,0.00016438,2]
[363576499,1748775033501,-430.0,0.00016438,2]
[363576500,1748775033510,-430.0,0.00016438,2]
[363576501,1748775033520,-430.0,0.00016438,2]
[363576502,1748775033530,-430.0,0.00016438,2]
[363576503,1748775033539,-430.0,0.00016438,2]
[363576504,1748775033550,-450.0,0.00016438,2]
[363576505,1748775033559,-430.0,0.00016438,2]
[363576506,1748775033569,-430.0,0.00016438,2]
[363576507,1748775033579,-430.0,0.00016438,2]
[363576508,1748775033589,-430.0,0.00016438,2]
[363576509,1748775033599,-430.0,0.00016438,2]
[363576510,1748775033609,-430.0,0.00016438,2]
[363576511,1748775033619,-430.0,0.00016438,2]
[363576512,1748775033628,-524.33,0.00016438,2]
[363576513,1748775033635,-430.0,0.00016438,2]
[363576514,1748775033645,-430.0,0.00016438,2]
[363576515,1748775033653,-430.0,0.00016438,2]
[363576516,1748775033663,-430.0,0.00016438,2]
[363576517,1748775033671,-430.0,0.00016438,2]
[363576518,1748775033681,-430.0,0.00016438,2]
[363576519,1748775033691,-372.92053004,0.00016438,2]
[363576520,1748775033701,-430.0,0.00016438,2]
[363576521,1748775033711,-430.0,0.00016438,2]
[363576522,1748775033721,-430.0,0.00016438,2]
[363576523,1748775033734,-430.0,0.00016438,2]
[363576524,1748775033744,-430.0,0.00016438,2]
[363576525,1748775033754,-430.0,0.00016438,2]
[363576526,1748775033764,-430.0,0.00016438,2]
[363576527,1748775033774,-430.0,0.00016438,2]
[363576528,1748775033785,-430.0,0.00016438,2]
[363576529,1748775033795,-430.0,0.00016438,2]
[363576530,1748775033805,-430.0,0.00016438,2]
[363576531,1748775033818,-430.0,0.00016438,2]
[363576532,1748775033828,-553.9948652,0.00016438,2]
[363576533,1748775033838,-430.0,0.00016438,2]
[363576534,1748775033848,-430.0,0.00016438,2]
[363576535,1748775033859,-430.0,0.00016438,2]
[363576536,1748775033870,-430.0,0.00016438,2]
[363576537,1748775033880,-430.0,0.00016438,2]
[363576538,1748775033890,-430.0,0.00016438,2]
[363576539,1748775033900,-430.0,0.00016438,2]
[363576540,1748775033910,-430.0,0.00016438,2]
[363576541,1748775033920,-494.37909429,0.00016438,2]
[363576542,1748775033929,-430.0,0.00016438,2]
[363576543,1748775033940,-422.37747354,0.00016438,2]
[363576544,1748775033949,-430.0,0.00016438,2]